bitfinex/quotes_ETHUSD_20220101
["timestamp","ask_amount","ask_price","bid_price","bid_amount"]
[1641002247614,3.22981562,3724.3,3724.2,0.09017896]
[1641002247814,1.11937998,3724.3,3724.2,0.09017896]
[1641002248014,3.21507687,3724.3,3724.2,0.09017896]
[1641002248862,1.11937998,3724.3,3724.2,0.09017896]
[1641002249462,3.23411828,3724.3,3724.2,0.09017896]
[1641002249662,1.11937998,3724.3,3724.2,0.09017896]
[1641002250063,3.24211211,3724.3,3724.2,0.09017896]
[1641002250264,1.11937998,3724.3,3724.2,0.09017896]
[1641002250867,3.44184572,3724.3,3724.2,0.09017896]
[1641002251068,2.11937998,3724.3,3724.2,0.09017896]
[1641002251469,1.11937998,3724.3,3724.2,0.09017896]
[1641002257164,4.17077302,3724.3,3724.2,0.09017896]
[1641002257566,1.11937998,3724.3,3724.2,0.09017896]
[1641002258166,4.17077302,3724.3,3724.2,0.09017896]
[1641002265363,1.11937998,3724.3,3724.2,0.09017896]
[1641002268614,1.06937998,3724.3,3724.2,0.09017896]
[1641002270517,4.12080595,3724.3,3724.2,0.09017896]
[1641002270960,5.12080595,3724.3,3724.2,0.09017896]
[1641002271965,6.22650127,3724.3,3724.2,0.09017896]
[1641002272166,4.12080595,3724.3,3724.2,0.09017896]
[1641002272364,6.22627476,3724.3,3724.2,0.09017896]
[1641002272566,7.22627476,3724.3,3724.2,0.09017896]
[1641002272774,6.22627476,3724.3,3724.2,0.09017896]
[1641002272968,4.12080595,3724.3,3724.2,0.09017896]
[1641002273570,7.24096278,3724.3,3724.2,0.0862]
[1641002273769,7.22064554,3724.3,3724.2,0.0862]
[1641002273969,7.22064554,3724.3,3723.6,0.0862]
[1641002274171,1.0,3724.2,3723.6,0.0862]
[1641002274369,2.04275363,3724.1,3723.7,0.00682108]
[1641002275019,3.05142597,3724.0,3723.7,0.00682108]
[1641002276625,3.05142597,3724.1,3723.7,0.00682108]
[1641002277024,3.05142597,3724.1,3723.8,0.0862]
[1641002277224,1.0,3724.2,3723.8,0.0862]
[1641002277424,1.0,3724.2,3723.9,0.00568423]
[1641002277625,3.05148565,3724.0,3723.9,0.00568423]
[1641002278282,5.07968867,3724.2,3723.9,0.00568423]
[1641002278482,6.09900219,3724.2,3723.9,0.00568423]
[1641002278684,3.05148565,3724.0,3723.9,0.00568423]
[1641002279684,3.05148565,3724.1,3723.9,0.00568423]
[1641002280088,3.05148565,3724.1,3724.0,0.0862]
[1641002280488,3.05148565,3724.1,3724.0,0.09131581]
[1641002280891,3.05148565,3724.2,3724.0,0.09131581]
[1641002281092,5.11264985,3724.2,3724.0,0.09131581]
[1641002281292,2.0611642,3724.2,3724.1,0.00454739]
[1641002281491,2.0235044,3724.2,3724.1,0.00454739]
[1641002281693,1.0,3724.2,3724.1,0.00454739]
[1641002281894,2.03214832,3724.2,3724.1,0.00454739]
[1641002282120,3.03214832,3724.2,3724.1,0.00454739]
[1641002283521,3.03214832,3724.2,3724.1,0.09074739]
[1641002283821,4.35400589,3724.2,3724.1,0.09074739]
[1641002284023,1.32185757,3724.2,3724.1,0.09074739]
[1641002284821,3.34163606,3724.2,3724.1,0.09074739]
[1641002285122,3.02050687,3724.2,3724.1,0.09074739]
[1641002285322,3.21688908,3724.2,3724.1,0.09074739]
[1641002285529,1.6,3724.2,3724.1,0.09074739]
[1641002285770,6.25,3724.2,3724.1,0.09074739]
[1641002285971,5.25,3724.2,3724.1,0.09074739]
[1641002286173,6.25,3724.2,3724.1,0.09074739]
[1641002286571,7.73124997,3724.2,3724.1,0.09074739]
[1641002286970,4.65,3724.1,3723.4,0.06082805]
[1641002287175,5.65,3724.1,3723.4,0.06082805]
[1641002287374,0.3,3724.0,3723.5,0.00341054]
[1641002287575,2.40227409,3723.9,3723.5,0.00341054]
[1641002287779,2.70227409,3723.9,3723.5,0.00341054]
[1641002288074,1.0,3723.8,3723.5,0.00341054]
[1641002288276,3.66959046,3723.7,3723.5,0.00341054]
[1641002288480,2.24696315,3723.6,3723.5,0.00341054]
[1641002288877,3.24696315,3723.6,3723.5,0.00341054]
[1641002289078,1.36898342,3723.7,3723.5,0.00341054]
[1641002289278,2.69408045,3723.7,3723.5,0.00341054]
[1641002289717,2.69408045,3723.7,3722.8,0.06082897]
[1641002289718,2.69408045,3723.7,3723.1,6.18]
[1641002289919,2.10324728,3723.6,3723.1,6.18]
[1641002290117,2.10324728,3723.6,3723.2,0.00511581]
[1641002290118,3.06630686,3723.6,3723.2,0.00511581]
[1641002290821,4.39140389,3723.6,3723.2,0.00511581]
[1641002292018,3.06630686,3723.6,3723.2,0.00511581]
[1641002293023,1.0,3723.6,3723.2,0.00511581]
[1641002293677,2.32509703,3723.6,3723.2,0.00511581]
[1641002294275,1.0,3723.6,3723.2,0.00511581]
[1641002294576,1.96898342,3723.7,3723.2,0.00511581]
[1641002294577,2.96898342,3723.7,3723.2,0.00511581]
[1641002295074,5.00591586,3723.7,3723.2,0.00511581]
[1641002295274,1.36898342,3723.7,3723.2,0.00511581]
[1641002295978,1.32509703,3723.8,3723.2,0.67654581]
[1641002296179,1.32509703,3723.9,3723.2,0.67654581]
[1641002296380,1.32509703,3723.9,3723.3,0.00454738]
[1641002296778,1.32509703,3723.8,3723.3,0.00454738]
[1641002297220,1.03030014,3723.6,3723.3,0.00454738]
[1641002298022,3.05194249,3723.5,3723.3,0.67595738]
[1641002298224,3.05194249,3723.5,3723.3,0.00454738]
[1641002298421,3.05194249,3723.5,3723.4,0.00397896]
[1641002298621,3.05194249,3723.5,3723.1,6.18]
[1641002298622,4.05194249,3723.5,3723.2,0.00511581]
[1641002298830,3.05194249,3723.5,3723.2,0.00511581]
[1641002299224,1.03030014,3723.6,3723.2,0.00511581]
[1641002299523,1.03030014,3723.6,3723.2,0.67654581]
[1641002299923,1.03030014,3723.6,3723.3,0.00454738]
[1641002301383,1.03030014,3723.6,3723.3,0.00639043]
[1641002301678,1.03030014,3723.6,3723.4,0.00397896]
[1641002302084,0.0595,3724.1,3723.4,0.00397896]
[1641002302682,3.0519347,3724.0,3723.4,0.00397896]
[1641002303284,1.19190621,3723.7,3723.4,0.00397896]
[1641002303888,1.19190621,3723.7,3723.4,0.0076649]
[1641002305315,3.0520257,3723.6,3723.4,0.0076649]
[1641002305717,5.09334685,3723.6,3723.4,0.0076649]
[1641002305917,3.0520257,3723.6,3723.4,0.0076649]
[1641002307126,13.01280664,3724.4,3723.4,0.0076649]
[1641002307423,0.00113685,3724.3,3723.4,0.0076649]
[1641002307622,0.00113685,3724.3,3723.9,0.67128]
[1641002307822,0.00113685,3724.3,3724.0,0.67122]
[1641002308271,0.00113685,3724.3,3724.1,1.39712649]
[1641002308669,3.0527093,3724.3,3724.1,2.06832649]
[1641002309071,0.2417873,3724.3,3724.1,4.15705739]
[1641002309269,1.32509703,3725.0,3724.1,2.07201175]
[1641002309468,1.32509703,3725.0,3724.1,1.40081175]
[1641002309772,0.00341054,3724.9,3724.7,0.67114]
[1641002310170,0.00284212,3724.8,3724.7,0.67114]
[1641002310369,0.00284212,3724.8,3724.4,1.34226]
[1641002310770,0.00227369,3724.7,3724.4,1.34226]
[1641002311270,0.00170527,3724.6,3724.4,1.34226]
[1641002311671,0.00113685,3724.5,3724.4,1.34226]
[1641002314325,0.00113685,3724.5,3724.4,0.00368506]
[1641002314727,1.29241418,3724.7,3724.4,0.00368506]
[1641002314923,2.59241418,3724.7,3724.4,0.00368506]
[1641002315122,1.0,3724.6,3724.4,0.00368506]
[1641002315422,1.04218748,3724.5,3724.4,0.00368506]
[1641002315623,1.32509703,3724.8,3724.4,0.00368506]
[1641002315624,1.0,3724.8,3724.4,0.00368506]
[1641002315863,1.3251703,3724.6,3724.4,0.00368506]
[1641002316064,1.2751703,3724.6,3724.4,0.00368506]
[1641002316866,1.2751703,3724.6,3724.4,0.67485506]
[1641002317266,0.00113684,3724.7,3724.5,0.6712]
[1641002320228,0.00113684,3724.7,3724.5,1.6464]
[1641002322530,0.00113684,3724.7,3724.6,7.6002658]
[1641002322732,0.00113684,3724.7,3724.6,7.7122658]
[1641002322931,0.00113684,3724.7,3724.6,5.0652]
[1641002323131,0.00113684,3724.7,3724.6,5.0628]
[1641002323369,0.00113684,3724.7,3724.6,5.3596]
[1641002323569,0.00113684,3724.7,3724.6,6.3564]
[1641002323769,0.00113684,3724.7,3724.6,6.3556]
[1641002323969,2.02681263,3725.6,3725.1,0.67092]
[1641002324170,2.02681263,3725.6,3725.2,1.34182]
[1641002324372,0.00454739,3725.5,3725.2,1.34182]
[1641002324571,0.00454739,3725.5,3725.2,1.56392]
[1641002324769,2.02681263,3725.6,3725.4,4.05]
[1641002324969,2.02681263,3725.6,3725.5,2.25571299]
[1641002325168,2.02681263,3725.6,3725.5,3.59750299]
[1641002325370,2.02794947,3725.6,3725.5,3.59750299]
[1641002328631,2.02794947,3725.6,3725.5,3.4357186]
[1641002328831,2.02794947,3725.6,3725.5,4.1039186]
[1641002329234,2.02794947,3725.6,3725.5,4.7039186]
[1641002329434,2.02794947,3725.6,3725.5,4.4039186]
[1641002329634,2.02794947,3725.6,3725.5,4.7039186]
[1641002331268,2.02794947,3725.6,3725.5,4.4039186]
[1641002331570,2.02794947,3725.6,3725.5,2.00999]
[1641002331868,2.02794947,3725.6,3725.5,1.34179]
[1641002332073,2.02794947,3725.6,3725.5,4.04179]
[1641002333673,2.02794947,3725.6,3725.5,2.7]
[1641002333874,2.32794947,3725.6,3725.5,2.7]
[1641002334520,2.02794947,3725.6,3725.5,2.7]
[1641002344831,5.0781596,3725.6,3725.5,2.7]
[1641002346187,5.0781596,3725.6,3725.5,3.3]
[1641002347092,5.0781596,3725.6,3725.5,2.7]
[1641002347490,5.0781596,3725.6,3725.5,3.0]
[1641002347892,5.0781596,3725.6,3725.5,3.7271]
[1641002348293,5.0781596,3725.6,3725.5,3.6771]
[1641002349093,2.02794947,3725.6,3725.5,3.6771]
[1641002351028,2.02794947,3725.6,3725.5,4.9771]
[1641002351227,2.02794947,3725.6,3725.5,3.9771]
[1641002351429,0.06126286,3726.1,3725.6,7.4512859]
[1641002351629,0.06126286,3726.1,3725.8,0.67079]
[1641002351831,2.1074,3726.4,3726.0,15.65]
[1641002352027,2.1074,3726.4,3726.1,1.0]
[1641002352227,2.1074,3726.4,3726.1,1.1008]
[1641002352228,0.00170527,3726.3,3726.1,1.1008]
[1641002352427,2.1074,3726.4,3726.2,4.7]
[1641002352627,2.1074,3726.4,3726.3,5.15]
[1641002352833,2.1074,3726.4,3726.3,0.3]
[1641002353027,2.1074,3726.4,3726.3,2.20329381]
[1641002353278,2.1074,3726.4,3726.3,1.20329381]
[1641002353478,2.1074,3726.4,3726.3,1.50329381]
[1641002356481,2.1074,3726.4,3726.3,3.00329381]
[1641002356681,2.1074,3726.4,3726.3,4.00329381]
[1641002356881,0.06077643,3726.9,3726.4,4.7]
[1641002357134,0.06077643,3726.9,3726.7,1.34122]
[1641002357334,0.00284212,3726.8,3726.7,1.34122]
[1641002357535,0.00284212,3726.8,3726.7,1.94122]
[1641002357736,1.08266214,3727.8,3726.7,3.44122]
[1641002357935,1.08266214,3727.8,3727.1,1.41649433]
[1641002358138,0.00795793,3727.7,3727.1,1.41649433]
[1641002358335,3.05692966,3727.7,3727.1,1.41649433]
[1641002358535,0.0073895,3727.6,3727.1,2.08714433]
[1641002358934,0.00682108,3727.5,3727.1,2.08714433]
[1641002359335,0.00625266,3727.4,3727.1,0.67065]
[1641002359537,0.00625266,3727.4,3726.7,1.5]
[1641002359836,0.00568423,3727.3,3726.7,1.5]
[1641002360236,0.00511581,3727.2,3726.7,1.5]
[1641002360640,1.36015697,3726.8,3726.7,1.5]
[1641002361486,1.36015697,3726.8,3726.7,4.2]
[1641002361689,4.4091287,3726.8,3726.7,4.2]
[1641002370888,4.4091287,3726.8,3726.7,4.20444199]
[1641002375792,3.04897173,3726.8,3726.7,4.20444199]
[1641002376991,3.05408754,3727.2,3726.7,4.20444199]
[1641002377196,1.21184292,3727.0,3726.7,4.20444199]
[1641002377597,1.33352198,3726.8,3726.7,4.20444199]
[1641002378201,4.38249371,3726.8,3726.7,4.20444199]
[1641002378602,1.33352198,3726.8,3726.7,4.20444199]
[1641002379652,0.00341054,3726.9,3726.7,4.20444199]
[1641002379853,3.04897173,3726.8,3726.7,4.20444199]
[1641002380457,0.00341054,3726.9,3726.7,4.20444199]
[1641002380458,3.05238227,3726.9,3726.7,4.20444199]
[1641002380753,3.04897173,3726.8,3726.7,4.20444199]
[1641002381756,6.16610393,3726.8,3726.7,2.46817506]
[1641002381956,4.7,3726.7,3726.3,0.06077575]
[1641002382160,4.7,3726.7,3725.7,0.26909769]
[1641002382161,0.01225769,3726.4,3725.7,0.26909769]
[1641002382460,0.01225769,3726.4,3725.8,0.00284212]
[1641002382860,0.67119,3726.1,3725.7,0.00341054]
[1641002383060,6.02836016,3725.8,3725.7,0.00341054]
[1641002383279,1.32836016,3725.8,3725.7,0.00341054]
[1641002383480,2.32836016,3725.8,3725.7,0.00341054]
[1641002383684,1.32836016,3725.8,3725.7,0.00341054]
[1641002383880,1.3,3726.1,3725.7,0.00341054]
[1641002383881,4.04897173,3726.0,3725.7,0.00341054]
[1641002384079,1.0,3725.9,3725.7,0.00341054]
[1641002384280,6.78270974,3725.8,3725.7,0.00341054]
[1641002384480,2.38270974,3725.8,3725.7,0.00341054]
[1641002384681,3.38270974,3725.8,3725.7,0.00341054]
[1641002385082,6.43168147,3725.8,3725.7,0.00341054]
[1641002385881,3.04897173,3725.8,3725.7,0.00341054]
[1641002386081,3.04897173,3725.8,3725.6,2.50469644]
[1641002387025,3.04897173,3725.8,3725.6,2.80469644]
[1641002387235,4.37728565,3725.9,3725.6,2.80469644]
[1641002387830,4.38012777,3726.2,3725.6,2.80469644]
[1641002388330,0.00227369,3726.1,3725.6,2.50469644]
[1641002388730,0.00170527,3726.0,3725.6,2.50469644]
[1641002389033,0.00113685,3725.9,3725.6,2.50469644]
[1641002389431,3.04897173,3726.2,3725.6,2.50469644]
[1641002389432,0.00227369,3726.1,3725.6,2.50469644]
[1641002389833,0.00170527,3726.0,3725.6,2.50469644]
[1641002390232,0.00113685,3725.9,3725.6,2.50469644]
[1641002390632,0.00227369,3726.1,3725.6,2.50469644]
[1641002391083,0.00170527,3726.0,3725.6,2.50469644]
[1641002391482,0.00113685,3725.9,3725.6,2.50469644]
[1641002391887,0.00227369,3726.1,3725.6,2.50469644]
[1641002392286,4.37728565,3726.2,3725.6,2.50469644]
[1641002392287,0.00170527,3726.0,3725.6,2.50469644]
[1641002392687,0.00113685,3725.9,3725.6,2.50469644]
[1641002392887,1.18099856,3725.7,3725.6,2.50469644]
[1641002393291,3.3188482,3725.7,3725.6,2.50469644]
[1641002393788,4.6188482,3725.7,3725.6,2.50469644]
[1641002394191,7.70579125,3725.7,3725.6,2.50469644]
[1641002394388,4.22997029,3725.7,3725.6,2.50469644]
[1641002395029,6.40749817,3725.7,3725.6,2.50469644]
[1641002395429,4.22997029,3725.7,3725.6,2.50469644]
[1641002395628,6.38005107,3725.7,3725.6,2.50469644]
[1641002395827,4.22997029,3725.7,3725.6,2.50469644]
[1641002396834,6.38858615,3725.7,3725.6,2.50469644]
[1641002397031,4.22997029,3725.7,3725.6,2.50469644]
[1641002397434,5.22997029,3725.7,3725.6,2.50469644]
[1641002398675,7.38899213,3725.7,3725.6,2.50469644]
[1641002398876,5.22997029,3725.7,3725.6,2.50469644]
[1641002399077,7.42986795,3725.7,3725.6,2.50469644]
[1641002399275,7.48661718,3725.7,3725.6,2.50469644]
[1641002400477,6.48661718,3725.7,3725.6,2.50469644]
[1641002400780,4.22997029,3725.7,3725.6,2.50469644]
[1641002402839,5.55450246,3725.7,3725.6,2.50469644]
[1641002403037,4.3735039,3725.7,3725.6,2.50469644]
[1641002403243,3.04897173,3725.7,3725.6,2.50469644]
[1641002403439,4.75557078,3726.1,3725.6,2.50469644]
[1641002403640,2.64435058,3726.1,3725.6,2.50469644]
[1641002404038,4.10033241,3726.0,3725.6,2.50469644]
[1641002404439,0.67117,3725.8,3725.6,2.50469644]
[1641002404745,2.2072542,3725.7,3725.6,2.50469644]
[1641002405140,4.45,3725.6,3724.1,3.75509274]
[1641002405339,2.19862499,3725.5,3724.1,3.70995764]
[1641002405539,1.14808951,3724.7,3724.1,3.70995764]
[1641002405790,1.14808951,3724.7,3724.1,0.94031769]
[1641002405989,1.14808951,3724.7,3724.2,0.00852635]
[1641002406590,3.04897173,3724.6,3724.2,0.67972635]
[1641002406990,3.04897173,3724.6,3724.3,0.00795793]
[1641002407194,3.04897173,3724.6,3724.3,1.35017793]
[1641002407596,3.04897173,3724.6,3724.4,0.00738951]
[1641002407995,4.28408075,3725.9,3724.4,1.67849951]
[1641002407996,1.32736377,3725.4,3724.4,1.67849951]
[1641002408196,1.32736377,3725.4,3724.4,1.78169951]
[1641002408394,1.32736377,3725.4,3724.5,0.11082108]
[1641002408596,0.06174574,3725.4,3724.8,1.34204]
[1641002408795,0.06174574,3725.4,3725.0,0.67098]
[1641002408998,0.01174574,3725.4,3725.2,0.67094]
[1641002409197,4.3763355,3725.7,3725.3,1.40339534]
[1641002409396,1.32736377,3725.9,3725.4,0.1629116]
[1641002409633,1.32736377,3725.9,3725.4,0.6274936]
[1641002409837,1.32736377,3725.9,3725.5,0.77604685]
[1641002410035,1.32736377,3725.9,3725.5,0.77684685]
[1641002410235,1.32736377,3725.9,3725.6,0.67089]
[1641002410836,2.64207689,3726.5,3725.6,3.37089]
[1641002410837,1.27963746,3726.4,3725.6,3.37089]
[1641002411039,1.27963746,3726.4,3725.9,0.6709]
[1641002411239,1.27963746,3726.4,3725.9,1.6124]
[1641002411240,1.28134273,3726.4,3725.9,1.6124]
[1641002412036,0.00170527,3726.4,3725.9,1.6124]
[1641002412839,0.00170527,3726.4,3726.0,1.22860024]
[1641002413888,0.00170527,3726.4,3725.9,0.9415]
[1641002414290,0.67276527,3726.4,3725.9,0.9415]
[1641002414488,0.00170527,3726.4,3725.9,0.9415]
[1641002414688,0.00170527,3726.4,3726.2,0.1629116]
[1641002414890,0.00170527,3726.4,3726.3,0.16287673]
[1641002415293,3.00170527,3726.4,3726.3,0.16287673]
[1641002416090,4.75170527,3726.4,3726.3,0.16287673]
[1641002416491,3.00170527,3726.4,3726.3,0.16287673]
[1641002416692,4.00170527,3726.4,3726.3,0.16287673]
[1641002416894,4.30170527,3726.4,3726.3,0.16287673]
[1641002417542,6.44586893,3726.4,3726.3,0.16287673]
[1641002417743,1.40019209,3726.1,3725.7,1.27807402]
[1641002417944,0.00170527,3726.4,3725.5,0.01015981]
[1641002418245,0.00341054,3726.3,3725.5,0.68114981]
[1641002418741,0.00284212,3726.2,3725.7,0.67087]
[1641002419142,3.55023529,3726.8,3725.8,2.07913245]
[1641002419143,0.00227369,3726.1,3725.8,2.07913245]
[1641002419341,0.00227369,3726.1,3726.0,4.29166]
[1641002419541,6.88172967,3727.0,3726.0,4.59166]
[1641002419742,6.86935764,3727.0,3726.0,3.25]
[1641002419943,0.00682108,3726.9,3726.0,3.3524]
[1641002420142,0.00682108,3726.9,3726.0,3.25]
[1641002420343,7.51393529,3727.3,3726.1,3.45]
[1641002420344,6.56259797,3727.3,3726.1,3.45]
[1641002420545,1.21310297,3727.2,3726.5,1.00535637]
[1641002420793,0.00170527,3727.2,3726.5,1.00535637]
[1641002420995,0.00170527,3727.2,3726.6,0.00170527]
[1641002421194,0.00170527,3727.2,3726.6,0.67248527]
[1641002421596,0.00170527,3727.2,3726.7,0.00113685]
[1641002422199,0.00170527,3727.2,3726.7,0.67189685]
[1641002422499,0.00170527,3727.2,3726.7,0.67076]
[1641002422702,0.00170527,3727.2,3726.7,1.57136]
[1641002423101,1.32611,3727.0,3726.7,1.57136]
[1641002423500,1.32611,3726.9,3726.7,1.57136]
[1641002424105,1.32611,3727.0,3726.7,1.57136]
[1641002424299,1.32611,3727.0,3726.7,2.17136]
[1641002424537,1.32611,3727.0,3726.8,0.67065]
[1641002425046,3.04951944,3727.1,3726.8,1.67065]
[1641002426240,3.04951944,3727.1,3726.8,2.34126]
[1641002426440,3.04951944,3727.1,3726.9,1.64123]
[1641002426942,1.32781527,3727.2,3726.9,1.94123]
[1641002427345,1.32781527,3727.2,3727.0,3.11265209]
[1641002427545,1.32781527,3727.2,3727.1,3.25]
[1641002427844,1.32781527,3727.2,3727.1,3.76837187]
[1641002428044,1.32781527,3727.2,3727.1,4.06837187]
[1641002428291,0.00170527,3727.2,3727.1,4.06837187]
[1641002429290,0.00170527,3727.2,3727.1,1.97061]
[1641002429490,0.00170527,3727.2,3727.1,4.05212745]
[1641002430088,0.00170527,3727.2,3727.0,1.70688214]
[1641002430289,0.00170527,3727.2,3727.0,17.35688214]
[1641002430489,1.32611,3727.3,3727.0,17.35688214]
[1641002430490,0.00113685,3727.1,3727.0,17.35688214]
[1641002431289,0.00113685,3727.1,3727.0,18.35688214]
[1641002431493,0.00113685,3727.1,3727.0,2.70688214]
[1641002431691,0.00113685,3727.1,3727.0,2.80928214]
[1641002431891,0.00113685,3727.1,3727.0,2.70688214]
[1641002432136,0.00113685,3727.1,3727.0,2.80848214]
[1641002432335,0.00113685,3727.1,3727.0,2.70688214]
[1641002432737,0.00113685,3727.1,3727.0,2.80768214]
[1641002432934,0.00113685,3727.1,3727.0,2.80848214]
[1641002433335,0.00113685,3727.1,3727.0,2.70688214]
[1641002433735,0.00113685,3727.1,3727.0,5.97472724]
[1641002434737,0.45,3727.2,3727.0,5.40688214]
[1641002435035,0.45,3727.2,3727.1,1.0]
[1641002435879,0.45,3727.2,3727.1,0.95]
[1641002436884,0.45,3727.2,3727.1,3.15]
[1641002437887,0.45,3727.2,3727.1,6.65]
[1641002438088,0.45,3727.2,3727.1,4.45]
[1641002438590,0.45,3727.2,3727.1,5.05]
[1641002440537,0.45,3727.2,3727.1,3.5]
[1641002441542,0.45,3727.2,3727.0,4.27451943]
[1641002441938,0.45,3727.2,3727.1,0.3]
[1641002442341,0.45,3727.2,3727.1,0.6]
[1641002444089,0.45,3727.2,3727.1,0.3]
[1641002444286,0.45,3727.2,3727.1,0.1166]
[1641002445292,0.45,3727.2,3727.1,0.4166]
[1641002448145,0.45,3727.2,3727.1,1.08721]
[1641002448544,0.45,3727.2,3727.1,2.08721]
[1641002449146,0.45,3727.2,3727.1,5.58721]
[1641002449348,0.45,3727.2,3727.1,5.88721]
[1641002450248,0.06148483,3727.7,3727.2,4.45]
[1641002450448,0.06148483,3727.7,3727.4,0.67053]
[1641002450649,0.00284211,3727.6,3727.4,1.27053]
[1641002451081,0.00227369,3727.5,3727.4,1.28068981]
[1641002451685,0.00227369,3727.5,3727.4,1.39728981]
[1641002452086,0.00227369,3727.5,3727.4,1.40744962]
[1641002452987,0.00227369,3727.5,3727.4,4.11760943]
[1641002453191,0.00227369,3727.5,3727.4,5.11760943]
[1641002454189,0.00227369,3727.5,3727.4,2.42776924]
[1641002454639,0.00227369,3727.5,3727.4,2.41760943]
[1641002455239,0.00227369,3727.5,3727.3,0.09972943]
[1641002455439,0.00469666,3728.0,3727.4,3.7]
[1641002455640,0.00469666,3728.0,3727.3,3.59972943]
[1641002455641,0.00469666,3728.0,3727.8,1.31638866]
[1641002455841,3.0507588,3727.9,3727.8,1.31638866]
[1641002456139,3.0507588,3727.9,3727.7,2.01153]
[1641002456341,3.0507588,3727.9,3727.3,3.5]
[1641002456547,0.00170527,3727.8,3727.3,3.5]
[1641002457045,0.00113685,3727.7,3727.3,4.84116]
[1641002457246,0.00113685,3727.7,3727.3,1.34116]
[1641002457445,0.00113685,3727.7,3727.3,1.34522851]
[1641002457845,3.04962196,3727.7,3727.3,1.34522851]
[1641002458044,3.04962196,3727.7,3727.3,1.64522851]
[1641002462538,3.04962196,3727.7,3727.3,0.30406851]
[1641002462940,3.04962196,3727.7,3727.3,0.00406851]
[1641002464942,4.37573196,3727.7,3727.3,0.00406851]
[1641002465341,1.32611,3727.6,3727.3,0.00406851]
[1641002465985,1.30722806,3727.0,3726.7,0.3]
[1641002466182,4.37573196,3727.7,3726.6,0.62966257]
[1641002466381,4.37573196,3727.7,3726.8,0.00397896]
[1641002466780,1.32724685,3727.7,3726.8,0.00397896]
[1641002466982,1.32724685,3727.7,3726.8,0.30397896]
[1641002467383,3.04848511,3727.6,3726.9,0.00341054]
[1641002467584,1.17069013,3727.0,3726.9,0.00341054]
[1641002467787,1.32724685,3727.7,3726.9,0.67409054]
[1641002468184,1.32724685,3727.7,3727.0,0.00284212]
[1641002468384,1.32724685,3727.7,3727.0,0.88904212]
[1641002468685,1.32724685,3727.7,3727.3,0.67066]
[1641002468885,0.00113685,3727.7,3727.3,0.67066]
[1641002469087,1.1095712,3727.4,3727.3,0.67066]
[1641002469536,1.1095712,3727.4,3727.3,0.67179685]
[1641002469939,4.15805631,3727.4,3727.3,0.67179685]
[1641002470540,1.1095712,3727.4,3727.3,0.67179685]
[1641002470740,1.1095712,3727.4,3727.3,0.00113685]
[1641002471141,4.15805631,3727.4,3727.2,0.00170527]
[1641002471944,4.15805631,3727.4,3727.3,0.67066]
[1641002472341,1.1095712,3727.4,3727.3,0.67179685]
[1641002475795,1.1095712,3727.4,3726.5,2.45167034]
[1641002475997,1.1095712,3727.4,3726.9,0.67066]
[1641002477043,1.1095712,3727.4,3727.1,0.67068]
[1641002477248,1.1095712,3727.4,3727.1,1.34133]
[1641002477449,1.1095712,3727.4,3727.1,1.64133]
[1641002478447,1.1095712,3727.4,3727.2,1.34123]
[1641002479646,1.1095712,3727.4,3727.1,0.3]
[1641002480046,1.1095712,3727.4,3727.0,0.6707]
[1641002480444,1.1095712,3727.4,3727.1,0.00113684]
[1641002481291,1.1095712,3727.4,3727.1,0.67182684]
[1641002483399,1.1095712,3727.4,3727.1,0.67754135]
[1641002483599,1.1095712,3727.4,3727.1,3.37754135]
[1641002484002,1.1095712,3727.4,3727.1,3.67754135]
[1641002485046,1.96677068,3727.3,3727.1,2.70685135]
[1641002485246,1.3,3727.3,3726.6,2.74343983]
[1641002485443,1.3,3727.3,3726.6,1.16973983]
[1641002485647,4.75,3726.7,3726.0,2.7438034]
[1641002485846,0.68363349,3726.8,3726.0,2.7438034]
[1641002486048,1.38018358,3726.7,3726.1,0.00341054]
[1641002486648,1.38018358,3726.7,3725.2,2.31522946]
[1641002486649,3.15,3726.6,3725.2,2.31522946]
[1641002486850,3.15284212,3726.6,3725.2,2.31522946]
[1641002487049,0.0022737,3726.5,3725.3,0.00454739]
[1641002487447,0.0022737,3726.5,3725.1,0.80574459]
[1641002487448,0.00170527,3726.4,3725.2,0.00511581]
[1641002487651,0.00170527,3726.4,3725.3,1.34188]
[1641002487949,1.04193407,3725.6,3725.4,0.30397896]
[1641002488150,0.00113685,3726.3,3725.4,0.30397896]
[1641002488398,0.00170527,3726.4,3725.5,0.00341054]
[1641002488598,0.00170527,3726.4,3725.6,0.0036835]
[1641002488803,0.00113685,3726.3,3725.6,0.0036835]
[1641002489003,0.00113685,3726.3,3725.7,0.00227369]
[1641002489200,1.1937351,3725.8,3725.7,0.00227369]
[1641002492139,3.26566252,3725.8,3725.7,0.00227369]
[1641002492338,1.1937351,3725.8,3725.7,0.00227369]
[1641002493539,3.92754212,3726.6,3725.7,2.70227369]
[1641002493540,5.93436316,3726.6,3725.7,2.70227369]
[1641002493741,1.96823174,3726.6,3725.7,2.70227369]
[1641002493941,0.0022737,3726.5,3725.8,0.00170527]
[1641002494339,0.00170527,3726.4,3725.8,0.00170527]
[1641002494743,1.14598012,3726.0,3725.8,0.00170527]
[1641002495146,1.14598012,3726.0,3725.7,0.00227369]
[1641002496001,0.00284212,3726.6,3725.7,0.00227369]
[1641002496401,0.0022737,3726.5,3725.7,0.00227369]
[1641002496803,0.00170527,3726.4,3725.7,0.00227369]
[1641002497105,0.0623,3726.7,3725.7,0.00227369]
[1641002497106,0.00113685,3726.3,3725.7,0.00227369]
[1641002497405,0.00284212,3726.6,3725.7,0.00227369]
[1641002497605,1.34335439,3726.2,3725.7,0.00227369]
[1641002497805,1.34335439,3726.2,3725.8,0.67089]
[1641002498208,1.34335439,3726.2,3725.9,0.00113684]
[1641002498607,1.34335439,3726.2,3725.8,0.00170527]
[1641002498808,1.34335439,3726.2,3725.7,0.00227369]
[1641002499009,1.96767781,3726.1,3725.7,0.00227369]
[1641002500142,1.34335439,3726.2,3725.7,0.00227369]
[1641002500541,1.34335439,3726.2,3724.6,1.09073186]
[1641002500542,1.20910873,3725.4,3724.6,1.09073186]
[1641002500739,1.20910873,3725.4,3725.0,0.3]
[1641002500940,1.94629125,3726.0,3724.7,0.00568424]
[1641002501139,7.8121737,3726.1,3725.2,0.671]
[1641002501338,0.00113685,3725.9,3725.2,0.671]
[1641002501542,0.00170527,3726.0,3725.3,0.0022737]
[1641002501944,0.00113685,3725.9,3725.3,0.0022737]
[1641002502345,0.00170527,3726.0,3725.3,0.0022737]
[1641002502744,0.00113685,3725.9,3725.3,0.0022737]
[1641002503147,1.02588123,3725.5,3725.3,0.0022737]
[1641002504001,1.02588123,3725.5,3725.1,0.00341054]
[1641002504203,1.02588123,3725.5,3724.9,0.00454739]
[1641002505000,1.02588123,3725.5,3724.9,0.30454739]